bitfinex/quotes_BTCUSD_20250814
["timestamp","ask_amount","ask_price","bid_price","bid_amount"]
[1755145428079,5.57030108,123200.0,123190.0,0.30006661]
[1755145428655,5.08764973,123200.0,123190.0,0.30006661]
[1755145428806,5.63021614,123200.0,123190.0,0.30006661]
[1755145429380,5.63021614,123200.0,123190.0,0.17314661]
[1755145429495,5.63021614,123200.0,123190.0,0.30006661]
[1755145429698,5.63021614,123200.0,123190.0,0.14883761]
[1755145429699,5.71270057,123200.0,123190.0,0.14883761]
[1755145429917,5.71270057,123200.0,123190.0,0.27575761]
[1755145430114,5.71270057,123200.0,123190.0,0.12992]
[1755145430741,5.71270057,123200.0,123190.0,0.12792]
[1755145430942,5.71270057,123200.0,123190.0,0.12892]
[1755145431249,5.71270057,123200.0,123190.0,0.12792]
[1755145432721,5.91448736,123200.0,123190.0,0.12792]
[1755145432924,5.91448736,123200.0,123190.0,0.001]
[1755145433072,5.91448736,123200.0,123190.0,0.12788]
[1755145435257,5.91448736,123200.0,123190.0,0.42348]
[1755145435873,5.43213416,123200.0,123190.0,0.42348]
[1755145436006,5.91448736,123200.0,123190.0,0.42344]
[1755145438050,5.91448736,123200.0,123190.0,0.32232]
[1755145438498,5.65248736,123200.0,123190.0,0.32232]
[1755145441813,5.65248736,123200.0,123190.0,0.32132]
[1755145442036,5.65348736,123200.0,123190.0,0.12684]
[1755145442236,5.65448736,123200.0,123190.0,0.12684]
[1755145442879,5.65448736,123200.0,123190.0,0.1268]
[1755145443244,5.57200293,123200.0,123190.0,0.1268]
[1755145444987,5.57200293,123200.0,123190.0,0.4224]
[1755145445415,6.05435613,123200.0,123190.0,0.2956]
[1755145445696,6.05435613,123200.0,123190.0,0.19448]
[1755145445961,6.17587056,123200.0,123190.0,0.32124]
[1755145446588,7.62357056,123200.0,123190.0,0.32124]
[1755145447005,7.62257056,123200.0,123190.0,0.32124]
[1755145447385,7.62557056,123200.0,123190.0,0.32124]
[1755145447856,7.62457056,123200.0,123190.0,0.32124]
[1755145447979,7.62657056,123200.0,123190.0,0.32224]
[1755145448184,7.62657056,123200.0,123190.0,0.001]
[1755145448679,7.62657056,123200.0,123190.0,0.12776]
[1755145449188,7.62675129,123200.0,123190.0,0.12776]
[1755145449586,7.62675129,123200.0,123190.0,0.001]
[1755145449904,7.62675129,123200.0,123190.0,0.12776]
[1755145450042,7.62675129,123200.0,123190.0,0.001]
[1755145450043,7.91375129,123200.0,123190.0,0.001]
[1755145450252,7.91375129,123200.0,123190.0,0.12776]
[1755145450586,7.93807129,123200.0,123190.0,0.12776]
[1755145450801,7.9459718,123200.0,123190.0,0.12776]
[1755145455117,7.9459718,123200.0,123190.0,0.42344]
[1755145457174,7.9459718,123200.0,123190.0,0.42336]
[1755145457419,8.1249718,123200.0,123190.0,0.42336]
[1755145460628,8.78939368,123200.0,123190.0,0.3222]
[1755145460838,8.78939368,123200.0,123190.0,0.001]
[1755145461040,8.78939368,123200.0,123190.0,0.12768]
[1755145462719,8.6085553,123200.0,123190.0,0.12768]
[1755145462922,8.6065553,123200.0,123190.0,0.12668]
[1755145463355,8.6095553,123200.0,123190.0,0.12768]
[1755145463802,8.6065553,123200.0,123190.0,0.12768]
[1755145463996,8.6065553,123200.0,123190.0,0.001]
[1755145464247,8.6065553,123200.0,123190.0,0.12764]
[1755145464744,8.6065553,123200.0,123140.0,0.06934771]
[1755145464745,0.025,123190.0,123140.0,0.06934771]
[1755145464943,0.4817633,123150.0,123140.0,0.06934771]
[1755145465148,0.56348655,123150.0,123140.0,0.47650122]
[1755145465346,0.56348655,123150.0,123140.0,0.40082122]
[1755145465888,0.56348655,123150.0,123140.0,0.40382122]
[1755145466096,0.56448655,123150.0,123140.0,0.34097351]
[1755145466314,0.56448655,123150.0,123140.0,0.14641351]
[1755145466755,0.56448655,123150.0,123140.0,0.14341351]
[1755145467326,0.08372325,123150.0,123140.0,0.14341351]
[1755145467523,0.56648655,123150.0,123140.0,0.14341351]
[1755145467757,0.56648655,123150.0,123140.0,0.13526]
[1755145468049,0.4837633,123150.0,123140.0,0.00862]
[1755145468191,0.001,123150.0,123140.0,0.13526]
[1755145468409,0.001,123150.0,123140.0,0.00862]
[1755145468618,0.56748655,123150.0,123140.0,0.13626]
[1755145468828,0.64997098,123150.0,123140.0,0.13626]
[1755145470271,0.56748655,123150.0,123140.0,0.13626]
[1755145474939,0.56748655,123150.0,123140.0,0.33858]
[1755145475258,0.56748655,123150.0,123140.0,0.53064]
[1755145475679,0.56748655,123150.0,123140.0,0.53314]
[1755145476224,0.56748655,123150.0,123140.0,0.33074]
[1755145476446,0.08472325,123150.0,123140.0,0.33074]
[1755145476636,0.08472325,123150.0,123140.0,0.00962]
[1755145476843,0.002,123150.0,123140.0,0.13618]
[1755145477524,0.002,123150.0,123140.0,0.00962]
[1755145477758,0.002,123150.0,123140.0,0.13618]
[1755145478141,0.002,123150.0,123140.0,0.17937046]
[1755145478347,0.002,123150.0,123140.0,0.30593046]
[1755145479087,0.002,123150.0,123140.0,0.17937046]
[1755145479286,0.00087823,123150.0,123140.0,0.30589046]
[1755145479496,0.00087823,123150.0,123140.0,0.38861371]
[1755145479653,0.00087823,123150.0,123140.0,0.26209371]
[1755145479871,0.00087823,123150.0,123140.0,0.24317925]
[1755145480074,0.4827633,123180.0,123140.0,0.23817925]
[1755145480274,0.56548655,123180.0,123150.0,0.14808453]
[1755145480477,0.56548655,123180.0,123170.0,0.002]
[1755145481249,0.56548655,123180.0,123170.0,0.10388468]
[1755145481391,0.56548655,123180.0,123170.0,0.23040468]
[1755145482389,0.08272325,123180.0,123170.0,0.10388468]
[1755145482589,7.19571051,123200.0,123170.0,0.23290468]
[1755145482857,6.53052046,123200.0,123190.0,0.10188468]
[1755145483017,6.53052046,123200.0,123190.0,0.10388468]
[1755145483367,5.08282046,123200.0,123190.0,0.10388468]
[1755145483803,5.08282046,123200.0,123190.0,0.10638468]
[1755145484016,5.08382046,123200.0,123190.0,0.10838468]
[1755145484168,5.00109721,123200.0,123190.0,0.10838468]
[1755145484381,5.00109721,123200.0,123190.0,0.0065]
[1755145484581,5.00109721,123200.0,123190.0,0.004]
[1755145484809,5.48897051,123200.0,123190.0,0.004]
[1755145485008,5.48897051,123200.0,123190.0,0.52732]
[1755145485183,5.48897051,123200.0,123190.0,0.62899973]
[1755145485399,5.48897051,123200.0,123190.0,0.62999973]
[1755145487449,5.48386051,123200.0,123190.0,0.30119973]
[1755145487657,5.00109721,123200.0,123190.0,0.42763973]
[1755145487959,5.00109721,123200.0,123190.0,0.43013973]
[1755145488157,5.00109721,123200.0,123190.0,0.42763973]
[1755145489224,5.00109721,123200.0,123190.0,0.10667973]
[1755145489424,5.00109721,123200.0,123190.0,0.23311973]
[1755145489836,5.48897051,123200.0,123190.0,0.23111973]
[1755145490422,5.48897051,123200.0,123190.0,0.23311973]
[1755145490594,5.48386051,123200.0,123190.0,0.23311973]
[1755145490797,5.00109721,123200.0,123190.0,0.23311973]
[1755145492138,5.00109721,123200.0,123190.0,0.10667973]
[1755145492367,5.00109721,123200.0,123190.0,0.23557973]
[1755145493198,5.00109721,123200.0,123190.0,0.25988673]
[1755145493607,5.00109721,123200.0,123190.0,0.25738673]
[1755145495186,4.9868117,123200.0,123190.0,0.65406673]
[1755145495570,4.9868117,123200.0,123190.0,0.552387]
[1755145496529,4.9868117,123200.0,123190.0,0.226287]
[1755145496729,4.9868117,123200.0,123190.0,0.45428673]
[1755145497526,4.9868117,123200.0,123190.0,0.25980673]
[1755145498523,4.9868117,123200.0,123190.0,0.21620998]
[1755145498751,4.9868117,123200.0,123190.0,0.20904325]
[1755145498933,4.9868117,123200.0,123190.0,0.10702525]
[1755145499147,4.9868117,123200.0,123190.0,0.23334525]
[1755145499542,4.9858117,123200.0,123190.0,0.23334525]
[1755145499862,4.9858117,123200.0,123190.0,0.23434525]
[1755145500065,4.9858117,123200.0,123190.0,0.23734525]
[1755145500272,4.9889617,123200.0,123190.0,0.154622]
[1755145500485,4.9889617,123200.0,123190.0,0.028302]
[1755145500887,4.9889617,123200.0,123190.0,0.154582]
[1755145504370,4.9909217,123200.0,123190.0,0.154582]
[1755145504912,5.11019405,123200.0,123190.0,0.004]
[1755145505118,5.11019405,123200.0,123190.0,0.42584]
[1755145505317,5.11019405,123200.0,123190.0,0.32472]
[1755145505927,5.11019405,123200.0,123190.0,0.32072]
[1755145506475,5.11119405,123200.0,123190.0,0.32072]
[1755145506811,5.11019405,123200.0,123190.0,0.32072]
[1755145507016,5.11219405,123200.0,123180.0,0.024308]
[1755145507233,5.10904405,123200.0,123190.0,0.12624]
[1755145507813,5.11225405,123200.0,123150.0,0.49152417]
[1755145508082,0.00321,123190.0,123160.0,0.18272325]
[1755145508920,0.0397591,123190.0,123170.0,0.150548]
[1755145509354,0.00321,123180.0,123170.0,0.150548]
[1755145509891,0.0365491,123190.0,123170.0,0.150548]
[1755145510131,0.0365491,123180.0,123170.0,0.150548]
[1755145510555,0.0365491,123180.0,123170.0,0.153548]
[1755145510960,0.0365491,123180.0,123170.0,0.154548]
[1755145511930,0.0365491,123180.0,123170.0,0.151548]
[1755145512345,0.0365491,123180.0,123170.0,0.153548]
[1755145514985,0.0365491,123180.0,123170.0,0.550268]
[1755145515474,0.0397591,123180.0,123170.0,0.550268]
[1755145515606,0.0418191,123180.0,123170.0,0.550268]
[1755145516932,0.0418191,123180.0,123170.0,0.221788]
[1755145517148,0.12454235,123180.0,123170.0,0.347948]
[1755145517358,0.12454235,123180.0,123170.0,0.32364]
[1755145518936,0.12454235,123180.0,123170.0,0.32164]
[1755145519224,0.12454235,123180.0,123170.0,0.12616]
[1755145519397,0.12554235,123180.0,123170.0,0.12616]
[1755145522690,0.0428191,123180.0,123170.0,0.13403428]
[1755145525055,0.0428191,123180.0,123170.0,0.53075428]
[1755145525446,0.0407591,123180.0,123170.0,0.53075428]
[1755145526102,0.0375491,123180.0,123170.0,0.53075428]
[1755145526309,0.0375491,123180.0,123170.0,0.32851428]
[1755145526511,0.0375491,123180.0,123170.0,0.47363817]
[1755145527865,0.0375491,123180.0,123170.0,0.27915817]
[1755145528073,0.0375491,123180.0,123170.0,0.27907817]
[1755145528286,0.01592604,123180.0,123170.0,0.27907817]
[1755145528735,0.01592604,123180.0,123170.0,0.13395428]
[1755145529558,0.01592604,123180.0,123170.0,0.36180142]
[1755145532728,0.01592604,123180.0,123170.0,0.21667753]
[1755145534988,0.01592604,123180.0,123170.0,0.61339753]
[1755145535187,0.00673973,123180.0,123170.0,0.51227753]
[1755145535398,0.00673973,123180.0,123170.0,0.51223753]
[1755145535601,0.00673973,123180.0,123170.0,0.41111753]
[1755145538334,0.00673973,123180.0,123170.0,0.45972753]
[1755145538485,0.00673973,123180.0,123170.0,0.41111753]
[1755145538689,0.00673973,123180.0,123170.0,0.60018233]
[1755145539565,0.00673973,123180.0,123170.0,0.40570233]
[1755145539754,0.00673973,123180.0,123170.0,0.21663753]
[1755145540757,0.00872973,123180.0,123170.0,0.09059753]
[1755145540959,0.01175973,123180.0,123170.0,0.13387428]
[1755145541161,0.01175973,123180.0,123170.0,0.00787428]
[1755145541381,0.01175973,123180.0,123170.0,0.126]
[1755145542112,0.01175973,123180.0,123170.0,0.00786763]
[1755145542240,0.01175973,123180.0,123170.0,0.13386763]
[1755145542449,0.01175973,123180.0,123170.0,0.126]
[1755145543380,0.01175973,123180.0,123170.0,0.150308]
[1755145545089,0.01175973,123180.0,123170.0,0.547028]
[1755145545287,0.0050029,123180.0,123170.0,0.547028]
[1755145546144,0.0050029,123180.0,123170.0,0.45377381]
[1755145547149,0.0050029,123180.0,123170.0,0.445908]
[1755145548104,0.0050029,123180.0,123170.0,0.319908]
[1755145548320,0.0050029,123180.0,123170.0,0.445868]
[1755145550359,0.0050029,123180.0,123170.0,0.344748]
[1755145550584,0.0050029,123180.0,123170.0,0.35287077]
[1755145551311,0.00215353,123180.0,123170.0,0.35485077]
[1755145551514,0.00215353,123180.0,123170.0,0.16033077]
[1755145551749,0.00414353,123180.0,123170.0,0.16033077]
[1755145554992,0.00414353,123180.0,123170.0,0.55705077]
[1755145555334,0.00414353,123180.0,123170.0,0.64499557]
[1755145556434,4.9888417,123200.0,123170.0,0.41795557]
[1755145556642,4.9888417,123200.0,123190.0,0.14570431]
[1755145556815,4.9888417,123200.0,123190.0,0.27158431]
[1755145556816,4.9908317,123200.0,123190.0,0.27158431]
[1755145557597,4.9918317,123200.0,123190.0,0.27158431]
[1755145558277,4.9928317,123200.0,123190.0,0.27158431]
[1755145559484,4.9928317,123200.0,123190.0,0.27154431]
[1755145559695,4.9958317,123200.0,123190.0,0.14570431]
[1755145559908,4.9958317,123200.0,123190.0,0.27154431]
[1755145560316,4.9958317,123200.0,123190.0,0.27352431]
[1755145560555,4.9958317,123200.0,123190.0,0.27154431]
[1755145561442,4.77706877,123200.0,123190.0,0.22785682]
[1755145562125,4.77706877,123200.0,123190.0,0.12584]
[1755145565154,4.77706877,123200.0,123190.0,0.4214]
[1755145565778,4.77706877,123200.0,123190.0,0.19448]
[1755145565978,4.77706877,123200.0,123190.0,0.32028]
[1755145567093,4.77706877,123200.0,123190.0,0.1258]
[1755145569418,5.25983207,123200.0,123190.0,0.12576]
[1755145570725,4.77706877,123200.0,123190.0,0.12576]
[1755145571855,4.77706877,123200.0,123190.0,0.27146431]
[1755145573623,4.77706877,123200.0,123190.0,0.14570431]
[1755145573884,4.77706877,123200.0,123190.0,0.27146431]
[1755145574101,5.25983207,123200.0,123190.0,0.27146431]
[1755145575026,5.25983207,123200.0,123190.0,0.47370431]
[1755145575251,5.25983207,123200.0,123190.0,0.66818431]
[1755145575681,5.25983207,123200.0,123190.0,0.56706431]
[1755145576301,4.77706877,123200.0,123190.0,0.56706431]
[1755145577567,5.34255532,123200.0,123190.0,0.34018431]
[1755145577769,5.34255532,123200.0,123190.0,0.46590431]
[1755145578180,5.34255532,123200.0,123190.0,0.3202]
[1755145578805,5.34255532,123200.0,123190.0,0.12572]
[1755145583274,4.85979202,123200.0,123190.0,0.12572]
[1755145583484,5.34255532,123200.0,123190.0,0.12572]
[1755145584127,5.82531862,123200.0,123180.0,0.14570431]
[1755145584305,0.56846655,123190.0,123180.0,0.14570431]
[1755145584507,0.57055655,123190.0,123180.0,0.12568]
[1755145585172,0.57055655,123190.0,123180.0,0.42128]
[1755145585386,2.01825655,123190.0,123180.0,0.42128]
[1755145585586,2.10074098,123190.0,123180.0,0.42128]
[1755145586101,1.61797768,123190.0,123180.0,0.42128]
[1755145586302,2.10074098,123190.0,123180.0,0.42128]
[1755145587533,2.01825655,123190.0,123180.0,0.32016]
[1755145587946,2.01825655,123190.0,123180.0,0.12568]
[1755145588202,2.04257155,123190.0,123180.0,0.12568]
[1755145588502,0.59487155,123190.0,123180.0,0.12568]
[1755145589336,0.67735598,123190.0,123180.0,0.12568]
[1755145589744,0.67935598,123190.0,123180.0,0.12568]
[1755145590176,0.03700208,123180.0,123170.0,0.00812277]
[1755145590379,0.60755863,123180.0,123170.0,0.00201]
[1755145590820,0.60755863,123180.0,123150.0,0.14857431]
[1755145591378,0.60755863,123180.0,123160.0,0.12564]
[1755145591578,0.60855863,123180.0,123160.0,0.12564]
[1755145591784,0.60855863,123180.0,123160.0,0.13374272]
[1755145591993,0.12579533,123180.0,123160.0,0.13374272]
[1755145592267,0.60855863,123180.0,123160.0,0.13374272]
[1755145592735,0.60755863,123180.0,123160.0,0.13374272]
[1755145592944,0.60755863,123180.0,123170.0,0.12564]
[1755145593154,0.60457863,123180.0,123170.0,0.12564]
[1755145593355,0.12181533,123180.0,123170.0,0.12564]
[1755145593570,0.60457863,123180.0,123170.0,0.12564]
[1755145593779,0.60755863,123180.0,123170.0,0.12564]
[1755145594625,0.60855863,123180.0,123170.0,0.12564]
[1755145595047,0.60855863,123180.0,123170.0,0.5224]
[1755145596080,0.12579533,123180.0,123170.0,0.5224]
[1755145596265,0.57155655,123180.0,123170.0,0.5224]
[1755145597186,0.57155655,123180.0,123170.0,0.32016]
[1755145598224,0.08372325,123180.0,123170.0,0.12772]
[1755145598430,0.08372325,123180.0,123170.0,0.00208]
[1755145598641,0.08372325,123180.0,123170.0,0.12768]
[1755145600663,0.001,123180.0,123170.0,0.13055]
[1755145600919,0.001,123180.0,123170.0,0.00495]
[1755145601127,0.001,123180.0,123170.0,0.13051]
[1755145604970,0.001,123180.0,123170.0,0.67301431]
[1755145605227,0.001,123180.0,123170.0,0.57185431]
[1755145607859,0.001,123180.0,123170.0,0.27621431]
[1755145609868,0.00308,123180.0,123170.0,0.14778431]
[1755145610070,0.57172655,123180.0,123170.0,0.27118431]
[1755145610827,0.57172655,123180.0,123170.0,0.12548]
[1755145611430,0.08896325,123180.0,123170.0,0.12548]
[1755145611642,0.57172655,123180.0,123170.0,0.12548]
[1755145615099,0.57172655,123180.0,123170.0,0.52224]
[1755145615316,0.08896325,123180.0,123170.0,0.39676]
[1755145615531,0.08896325,123180.0,123170.0,0.52432]
[1755145615752,0.08896325,123180.0,123170.0,0.4232]
[1755145616901,0.08896325,123180.0,123170.0,0.42112]
[1755145617107,0.57172655,123180.0,123170.0,0.42112]
[1755145617695,0.57172655,123180.0,123170.0,0.32]
[1755145619690,0.57172655,123180.0,123170.0,0.12548]
[1755145620461,0.08896325,123180.0,123170.0,0.12548]
[1755145620660,0.57172655,123180.0,123170.0,0.12548]
[1755145621967,0.57172655,123180.0,123170.0,0.27118431]
[1755145623168,0.08896325,123180.0,123170.0,0.27118431]
[1755145623466,0.57172655,123180.0,123170.0,0.27118431]
[1755145624947,0.57172655,123180.0,123170.0,0.66794431]
[1755145626760,0.57172655,123180.0,123170.0,0.66996431]
[1755145626962,0.08896325,123180.0,123170.0,0.66996431]
[1755145627746,0.08896325,123180.0,123170.0,0.27320431]
[1755145628186,0.08896325,123180.0,123170.0,0.27118431]
[1755145628352,0.57172655,123180.0,123170.0,0.27118431]
[1755145628757,0.57172655,123180.0,123170.0,0.14570431]
[1755145628961,0.08896325,123180.0,123170.0,0.12536]
[1755145629154,0.57172655,123180.0,123160.0,0.15380703]
[1755145629486,0.4857933,123170.0,123160.0,0.15380703]
[1755145629683,0.4879133,123170.0,123160.0,0.27916703]
[1755145630043,0.00515,123170.0,123160.0,0.28118703]
[1755145630250,0.56851655,123180.0,123160.0,0.28218703]
[1755145630794,0.56851655,123180.0,123160.0,0.28405703]
[1755145630998,0.56851655,123180.0,123160.0,0.28118703]
[1755145631834,0.08575325,123180.0,123160.0,0.28118703]
[1755145632007,0.56851655,123180.0,123160.0,0.28118703]
[1755145632379,0.001,123170.0,123160.0,0.28118703]
[1755145632583,0.001,123170.0,123160.0,0.15582703]
[1755145632783,0.56851655,123180.0,123160.0,0.28114703]
[1755145633224,0.00303,123170.0,123150.0,0.01927036]
[1755145633455,0.00515,123170.0,123150.0,0.00783881]
[1755145633663,0.00515,123170.0,123150.0,0.024313]
[1755145634438,0.00515,123170.0,123160.0,0.12532]
[1755145635109,0.00515,123170.0,123160.0,0.52216]
[1755145635310,0.00515,123170.0,123160.0,0.29568]
[1755145635512,0.00515,123170.0,123160.0,0.421]
[1755145635788,0.00303,123170.0,123160.0,0.421]
[1755145636389,0.00403,123170.0,123160.0,0.421]
[1755145637255,0.00403,123170.0,123160.0,0.31984]
[1755145638113,0.00615,123170.0,123160.0,0.19452]
[1755145638318,0.00615,123170.0,123160.0,0.12528]
[1755145640108,0.4889133,123170.0,123160.0,0.12528]
[1755145640515,0.54607696,123170.0,123160.0,0.12528]
[1755145640755,0.4889133,123170.0,123160.0,0.12528]
[1755145642883,0.4889133,123170.0,123150.0,0.03243532]
[1755145643091,0.4858833,123170.0,123160.0,0.12524]
[1755145643498,0.4858833,123170.0,123160.0,0.27102575]
[1755145643788,0.4889133,123170.0,123160.0,0.27102575]
[1755145644281,0.50388776,123170.0,123160.0,0.27102575]
[1755145644594,0.50288776,123170.0,123160.0,0.27102575]
[1755145645103,0.50288776,123170.0,123160.0,0.56670575]
[1755145645838,0.02012446,123170.0,123160.0,0.56670575]
[1755145646361,0.02112446,123170.0,123160.0,0.56670575]
[1755145646563,0.00615,123170.0,123160.0,0.56670575]
[1755145646930,0.00615,123170.0,123160.0,0.27102575]
[1755145651739,0.00403,123170.0,123160.0,0.27102575]
[1755145651866,0.001,123170.0,123160.0,0.27098575]
[1755145652270,0.001,123170.0,123160.0,0.14578575]
[1755145652506,0.001,123170.0,123160.0,0.27098575]
[1755145652827,0.001,123170.0,123160.0,0.29529875]
[1755145654122,0.00403,123170.0,123160.0,0.27094575]
[1755145654326,0.00403,123170.0,123160.0,0.14578575]
[1755145654525,0.00403,123170.0,123160.0,0.27094575]
[1755145654931,0.00403,123170.0,123160.0,0.47326575]
[1755145655136,0.00403,123170.0,123160.0,0.66778575]
[1755145655336,0.00615,123170.0,123160.0,0.66778575]
[1755145655535,0.00615,123170.0,123160.0,0.44146575]
[1755145655738,0.00615,123170.0,123160.0,0.56662575]
[1755145656350,0.00403,123170.0,123160.0,0.56662575]
[1755145657701,0.00403,123170.0,123160.0,0.46546575]
[1755145657911,0.00403,123170.0,123160.0,0.27094575]
[1755145658239,0.001,123170.0,123160.0,0.27094575]
[1755145660156,0.00394,123170.0,123160.0,0.27094575]
[1755145660313,0.001,123170.0,123160.0,0.27094575]
[1755145661109,0.001,123170.0,123160.0,0.14578575]
[1755145661315,0.001,123170.0,123160.0,0.27090575]
[1755145664276,0.001,123170.0,123160.0,0.15385417]
[1755145664502,0.001,123170.0,123160.0,0.27897417]
[1755145664687,0.001,123170.0,123160.0,0.13318842]
[1755145665084,0.001,123170.0,123160.0,0.53002842]
[1755145665945,0.001,123170.0,123160.0,0.30374842]
[1755145666355,0.001,123170.0,123160.0,0.32766842]
[1755145667414,0.001,123170.0,123160.0,0.21587167]
[1755145667818,5.32127161,123200.0,123160.0,0.21587167]
[1755145668031,5.32127161,123200.0,123180.0,0.1457138]
[1755145668231,5.32127161,123200.0,123190.0,0.12508]
[1755145668532,5.32328161,123200.0,123190.0,0.12508]
[1755145671808,5.32527161,123200.0,123190.0,0.12504]
[1755145672266,5.32527161,123200.0,123180.0,0.1457138]
[1755145672476,5.32527161,123200.0,123190.0,0.12504]
[1755145673108,5.32728161,123200.0,123190.0,0.12504]
[1755145673376,5.32528161,123200.0,123190.0,0.12504]
[1755145673591,5.32628161,123200.0,123190.0,0.12504]
[1755145674009,5.32428161,123200.0,123190.0,0.12504]
[1755145674209,5.32628161,123200.0,123190.0,0.12504]
[1755145674462,5.32828161,123200.0,123190.0,0.12504]
[1755145674851,5.32628161,123200.0,123190.0,0.12504]
[1755145675045,5.32628161,123200.0,123190.0,0.5218]
[1755145675259,5.32828161,123200.0,123190.0,0.5218]
[1755145675698,5.32828161,123200.0,123190.0,0.42064]
[1755145676071,5.81104491,123200.0,123190.0,0.31952]
[1755145677015,5.81104491,123200.0,123180.0,0.1700208]
[1755145677225,5.80810491,123200.0,123190.0,0.125]
[1755145677845,5.80804491,123200.0,123190.0,0.125]
[1755145678058,5.80604491,123200.0,123190.0,0.125]
[1755145678389,5.80804491,123200.0,123190.0,0.125]
[1755145678886,5.80704491,123200.0,123190.0,0.125]
[1755145680286,5.32428161,123200.0,123190.0,0.125]
[1755145680471,5.80904491,123200.0,123190.0,0.125]
[1755145680664,5.80804491,123200.0,123190.0,0.125]
[1755145680877,5.81004491,123200.0,123190.0,0.125]
[1755145682919,5.32728161,123200.0,123190.0,0.125]
[1755145684946,5.32728161,123200.0,123190.0,0.52172]
[1755145685462,5.32728161,123200.0,123190.0,0.4206]
[1755145687607,5.32728161,123200.0,123190.0,0.444907]
[1755145687838,5.32728161,123200.0,123190.0,0.4206]
[1755145687839,5.81004491,123200.0,123190.0,0.4206]
[1755145689597,5.81004491,123200.0,123190.0,0.31948]
[1755145690178,5.32728161,123200.0,123190.0,0.31948]
[1755145690382,5.81004491,123200.0,123190.0,0.31948]
[1755145690615,5.32527161,123200.0,123190.0,0.31948]
[1755145690827,5.32527161,123200.0,123190.0,0.12492]
[1755145691074,5.32743161,123200.0,123190.0,0.12492]
[1755145692764,5.32543161,123200.0,123190.0,0.12492]
[1755145693253,5.32743161,123200.0,123190.0,0.12492]
[1755145693801,5.32543161,123200.0,123190.0,0.12492]
[1755145694217,5.32643161,123200.0,123190.0,0.12492]
[1755145695080,5.32643161,123200.0,123190.0,0.42052]
[1755145695293,5.32443161,123200.0,123190.0,0.42052]
[1755145695912,5.32643161,123200.0,123190.0,0.42052]
[1755145697544,5.32643161,123200.0,123190.0,0.5662338]
[1755145698205,5.32643161,123200.0,123190.0,0.42052]
[1755145698454,5.32643161,123200.0,123190.0,0.12484]
[1755145698889,5.86893078,123200.0,123190.0,0.12484]
[1755145700906,5.95165403,123200.0,123180.0,0.1457138]
[1755145701121,0.54249917,123190.0,123180.0,0.1457138]
[1755145701341,0.54785917,123190.0,123180.0,0.1457138]
[1755145701560,0.54785917,123190.0,123180.0,0.2705138]
[1755145702009,0.00536,123190.0,123180.0,0.2705138]
[1755145702247,0.54785917,123190.0,123180.0,0.2705138]
[1755145702661,0.00536,123190.0,123180.0,0.2705138]
[1755145703124,0.00636,123190.0,123180.0,0.2705138]
[1755145703949,0.00636,123190.0,123180.0,0.1457138]
[1755145704180,0.4885973,123190.0,123180.0,0.2705138]
[1755145704985,0.4885973,123190.0,123180.0,0.5661138]
[1755145705919,0.00636,123190.0,123180.0,0.5661138]
[1755145706145,0.4885973,123190.0,123180.0,0.5661138]
[1755145706522,0.65380498,123190.0,123180.0,0.4649938]
[1755145706711,0.65380498,123190.0,123180.0,0.1457138]
[1755145706929,0.65380498,123190.0,123180.0,0.1248]
[1755145707137,0.17156768,123190.0,123180.0,0.1248]
[1755145707298,0.65380498,123190.0,123180.0,0.1248]
[1755145708907,0.65280498,123190.0,123160.0,0.1457138]
[1755145709090,0.0032,123180.0,123170.0,0.12476]
[1755145709272,0.57032055,123180.0,123170.0,0.12476]
[1755145709678,0.08808325,123180.0,123170.0,0.12476]
[1755145711447,0.08908325,123180.0,123170.0,0.12476]
[1755145712239,0.09008325,123180.0,123170.0,0.12476]
[1755145715147,0.09008325,123180.0,123170.0,0.52152]
[1755145717458,0.1473153,123180.0,123170.0,0.52152]
[1755145717689,0.1473153,123180.0,123170.0,0.31928]
[1755145719209,0.1473153,123180.0,123150.0,0.00203856]
[1755145719434,0.1473153,123180.0,123140.0,0.1890648]
[1755145719435,0.08688325,123180.0,123140.0,0.1890648]
[1755145719684,0.00317,123170.0,123120.0,0.33107371]
[1755145720003,0.00317,123170.0,123130.0,0.18272325]
[1755145720351,0.00317,123170.0,123130.0,0.1972507]
[1755145720559,0.00317,123170.0,123140.0,0.12472]
[1755145721193,0.00317,123170.0,123150.0,0.001]
[1755145721443,0.00317,123170.0,123160.0,0.12472]
[1755145721658,0.00513,123170.0,123160.0,0.12472]
[1755145721901,0.00513,123170.0,123160.0,0.12468]
[1755145722713,0.54793061,123170.0,123140.0,0.002]
[1755145722926,0.00317,123160.0,123140.0,0.002]
[1755145723093,0.54597061,123160.0,123150.0,0.12468]
[1755145723239,0.54793061,123160.0,123150.0,0.12468]
[1755145724716,0.00513,123160.0,123150.0,0.12468]
[1755145725070,0.00513,123160.0,123150.0,0.42032]
[1755145725711,0.08785325,123160.0,123150.0,0.3192]
[1755145725916,0.57919017,123160.0,123150.0,0.3192]
[1755145726256,0.57919017,123160.0,123130.0,0.01452745]
[1755145726439,0.48255159,123150.0,123140.0,0.12468]
[1755145726646,0.57040484,123150.0,123100.0,0.14552344]
[1755145726786,0.00317,123140.0,123110.0,0.30740325]
[1755145727201,0.00317,123140.0,123110.0,0.18272325]
[1755145727405,0.00317,123140.0,123120.0,0.12468]
[1755145728098,0.00317,123140.0,123130.0,0.002]
[1755145728311,0.00513,123140.0,123130.0,0.002]
[1755145728754,0.00513,123140.0,123130.0,0.12664]
[1755145729419,0.00513,123140.0,123130.0,0.002]
[1755145729637,0.00513,123140.0,123130.0,0.12664]
[1755145729839,0.00513,123140.0,123130.0,0.12564]
[1755145730052,0.00513,123140.0,123130.0,0.12464]
[1755145731253,0.08885325,123140.0,123110.0,0.14552344]
[1755145731465,0.08885325,123140.0,123120.0,0.12464]
[1755145731466,0.00317,123130.0,123120.0,0.12464]
[1755145731633,0.00513,123130.0,123120.0,0.12464]
[1755145732283,0.00513,123130.0,123100.0,0.01422575]
[1755145732505,0.00513,123130.0,123110.0,0.12464]
[1755145733040,0.00513,123130.0,123110.0,0.12664]
[1755145733320,0.00513,123130.0,123110.0,0.12564]
[1755145733713,0.00513,123130.0,123110.0,0.12764]
[1755145733920,0.00513,123130.0,123110.0,0.12664]
[1755145734115,0.00513,123130.0,123120.0,0.12464]
[1755145734973,0.00513,123130.0,123120.0,0.52152]
[1755145735586,0.00513,123130.0,123120.0,0.52252]
[1755145737045,0.00513,123130.0,123120.0,0.19656]
[1755145737250,0.00513,123130.0,123120.0,0.3212]